bitfinex-derivatives/quotes_SOLF0:USTF0_20251122
["timestamp","ask_amount","ask_price","bid_price","bid_amount"]
[1763821577782,0.05485908,127.0,126.98,110.38514214]
[1763821578080,3.33,127.08,126.99,220.6188]
[1763821578476,3.33,127.08,127.01,110.2976]
[1763821578777,3.33,127.08,127.01,126.9976]
[1763821578982,3.33,127.08,127.02,110.2899]
[1763821579275,0.05878245,127.06,127.04,0.0537395]
[1763821580679,0.05878245,127.06,127.04,7.1425395]
[1763821581677,0.05878245,127.06,127.05,16.7]
[1763821582979,20.03,127.14,127.08,7.0863]
[1763821583779,20.03,127.14,127.05,117.3486]
[1763821583977,3.38559835,127.11,127.08,0.05283163]
[1763821585080,3.33,127.1,127.08,0.05283163]
[1763821586079,3.33,127.09,127.03,16.72]
[1763821586281,3.33,127.09,127.01,110.2988]
[1763821586480,3.33,127.09,127.02,16.72]
[1763821586684,3.33,127.08,127.01,7.0903]
[1763821587189,3.38006943,127.06,127.03,0.05547727]
[1763821587788,3.38006943,127.06,126.99,7.0916]
[1763821588188,3.38006943,127.06,127.0,7.0909]
[1763821588388,3.33,127.06,127.0,7.0909]
[1763821588886,3.38372884,127.04,127.02,0.05217483]
[1763821591590,0.05372884,127.04,127.02,0.05217483]
[1763821593294,0.05372884,127.04,127.02,7.14207483]
[1763821593595,0.05372884,127.04,127.02,23.86207483]
[1763821597092,0.05372884,127.04,127.02,0.05217483]
[1763821598499,3.32372884,127.04,127.02,0.05217483]
[1763821598796,0.05372884,127.04,127.02,0.05217483]
[1763821600199,0.05372884,127.04,127.02,7.14207483]
[1763821601200,0.05372884,127.04,127.03,16.7]
[1763821604800,10.3554,127.11,127.05,7.0881]
[1763821605001,3.27,127.11,127.06,16.7]
[1763821605603,3.27,127.11,127.06,23.7875]
[1763821605803,3.3286922,127.1,127.07,0.0499005]
[1763821606695,10.3569,127.08,127.02,7.0897]
[1763821606902,3.27,127.07,127.02,23.7897]
[1763821607207,3.27,127.07,126.99,6.60880786]
[1763821607400,3.27,127.05,126.99,16.7]
[1763821607810,3.32219015,127.03,127.01,0.05229381]
[1763821608009,3.32991945,127.03,127.01,0.05229381]
[1763821608313,0.05991945,127.03,127.01,0.05229381]
[1763821608608,0.05991945,127.03,127.01,7.14269381]
[1763821609005,3.27,127.12,127.04,110.2728]
[1763821609204,3.27,127.1,127.04,23.7886]
[1763821610107,0.05192602,127.08,127.06,0.06020195]
[1763821610308,3.32192602,127.08,127.06,0.06020195]
[1763821612209,3.32192602,127.08,126.98,131.0335342]
[1763821612210,4.90192602,127.08,126.98,131.0335342]
[1763821612409,3.27,127.07,126.99,16.7]
[1763821612603,3.27,127.07,127.01,7.0905]
[1763821612909,3.27,127.07,127.0,110.3073]
[1763821613109,0.05320821,127.05,127.03,7.0894]
[1763821614101,0.05320821,127.05,127.03,23.7894]
[1763821614605,0.05320821,127.05,127.04,6.60880786]
[1763821614805,3.27,127.1,127.05,110.2601]
[1763821615006,3.27,127.1,127.06,16.7]
[1763821615407,3.27,127.09,127.02,110.2893]
[1763821615809,3.32082162,127.07,127.04,0.0550125]
[1763821617108,3.32082162,127.07,127.04,7.1438125]
[1763821619217,0.05082162,127.07,127.05,7.0882]
[1763821620813,0.05082162,127.07,127.04,127.0244125]
[1763821620814,3.32082162,127.07,127.04,16.7550125]
[1763821621115,0.05082162,127.07,127.04,16.7550125]
[1763821621513,0.05082162,127.07,127.04,23.8438125]
[1763821621914,3.32082162,127.07,127.04,16.7550125]
[1763821622419,3.32082162,127.07,127.04,0.0550125]
[1763821623816,10.40822162,127.07,127.04,0.0550125]
[1763821624011,3.27,127.06,127.04,0.0550125]
[1763821624706,0.05082162,127.07,127.04,7.1438125]
[1763821625110,0.05082162,127.07,127.05,7.0883]
[1763821626012,0.05082162,127.07,127.04,16.7550125]
[1763821626208,3.31082162,127.07,127.04,0.0550125]
[1763821627209,3.26,127.05,127.04,0.0550125]
[1763821627420,3.26,127.05,126.98,23.792]
[1763821627816,3.26,127.03,126.98,16.7]
[1763821628319,0.05930414,127.02,126.99,0.05536923]
[1763821628614,3.31930414,127.02,126.99,0.05536923]
[1763821628821,3.31930414,127.02,126.92,124.47952634]
[1763821629012,3.26,127.02,126.93,16.7]
[1763821629411,3.26,127.01,126.95,7.0938]
[1763821630023,0.05638486,126.99,126.98,7.0921]
[1763821630216,0.05286817,127.0,126.98,7.0921]
[1763821630925,3.31286817,127.0,126.97,0.05498233]
[1763821635117,0.05286817,127.0,126.97,0.05498233]
[1763821636326,0.05286817,127.0,126.98,7.0921]
[1763821638114,3.26,127.06,127.01,7.0906]
[1763821639230,3.31838928,127.05,127.02,0.0592093]
[1763821639431,3.31838928,127.05,127.02,0.05020229]
[1763821640728,3.31838928,127.05,127.02,7.14010229]
[1763821642020,0.05838928,127.05,127.03,7.0893]
[1763821643019,0.05838928,127.05,127.02,0.05020229]
[1763821643528,0.05838928,127.05,127.03,7.0894]
[1763821644724,3.31838928,127.05,127.02,0.05020229]
[1763821645426,0.05838928,127.05,127.02,0.05020229]
[1763821646332,0.05838928,127.05,127.03,7.0893]
[1763821647123,0.05838928,127.05,127.04,16.7]
[1763821647438,10.3454,127.11,127.05,7.088]
[1763821647840,3.26,127.1,127.04,16.7]
[1763821648227,0.05438695,127.08,127.06,0.0592182]
[1763821648931,0.05438695,127.08,127.06,7.1469182]
[1763821649927,3.31438695,127.08,127.06,0.0592182]
[1763821650126,0.05438695,127.08,127.06,0.0592182]
[1763821650628,0.05438695,127.08,127.06,7.1469182]
[1763821651640,0.05438695,127.08,127.06,0.0592182]
[1763821652630,0.05438695,127.08,127.06,7.1469182]
[1763821655640,3.07438695,127.08,127.06,0.0592182]
[1763821656142,3.02,127.06,126.96,24.46209647]
[1763821656333,3.02,127.06,126.97,16.7]
[1763821657244,3.22117748,127.03,127.0,0.04983159]
[1763821657441,3.22117748,127.03,127.0,0.05790404]
[1763821660645,3.17,127.02,127.0,0.05790404]
[1763821661046,3.17,127.02,126.95,16.7]
[1763821661245,3.17,127.01,126.95,16.7]
[1763821661648,3.17,127.0,126.95,16.7]
[1763821661952,0.05232521,126.99,126.96,0.0593655]
[1763821662354,3.22232521,126.99,126.96,0.0593655]
[1763821665053,3.22232521,126.99,126.92,1.36935094]
[1763821665356,3.17,126.97,126.91,7.0959]
[1763821665759,3.17,126.97,126.9,1.37075332]
[1763821666056,3.17,126.96,126.9,1.37075332]
[1763821666262,3.22894561,126.95,126.92,0.05015567]
[1763821668564,0.05894561,126.95,126.92,0.05015567]
[1763821668971,0.05894561,126.95,126.92,110.42485567]
[1763821669264,7.0906,127.02,126.93,127.0677]
[1763821669464,3.17,127.01,126.93,127.0677]
[1763821670068,3.17,127.01,126.95,7.0938]
[1763821670263,3.17,127.01,126.97,0.05399893]
[1763821671974,3.17,126.98,126.97,0.05399893]
[1763821672268,0.05642876,126.99,126.97,0.05399893]
[1763821675470,0.05642876,126.99,126.97,7.14669893]
[1763821677674,3.22642876,126.99,126.93,62.0]
[1763821677881,3.22642876,126.99,126.9,127.092]
[1763821678074,3.17,126.99,126.91,110.3852]
[1763821678778,0.05010147,126.96,126.94,0.05757129]
[1763821680177,3.22010147,126.96,126.94,0.05757129]
[1763821681882,3.22010147,126.96,126.86,215.20087013]
[1763821682082,3.17,126.96,126.87,16.7]
[1763821682582,3.17,126.94,126.87,16.7]
[1763821682986,0.05951355,126.92,126.9,0.05291771]
[1763821683179,0.05824415,126.92,126.9,0.05355733]
[1763821683578,0.05824415,126.92,126.9,7.15005733]
[1763821683788,3.17,126.99,126.92,110.3754]
[1763821684179,3.17,126.99,126.94,7.0942]
[1763821684779,3.2296121,126.98,126.95,0.05636875]
[1763821685989,3.2296121,126.98,126.95,7.15006875]
[1763821686583,0.0596121,126.98,126.96,7.0931]
[1763821691890,0.0596121,126.98,126.97,16.7]
[1763821695799,0.0596121,126.98,126.96,7.0931]
[1763821695995,0.0596121,126.98,126.97,16.7]
[1763821696301,3.16,127.04,126.97,133.65082902]
[1763821696495,3.16,127.04,126.98,110.3247]
[1763821697100,3.16,127.06,127.01,110.2982]
[1763821697400,3.16,127.06,127.02,16.7]
[1763821697897,3.16,127.06,127.03,7.0892]
[1763821698104,3.16,127.06,127.02,16.7]
[1763821698303,3.16,127.06,126.97,6.62282902]
[1763821698597,3.16,127.06,126.98,16.7]
[1763821699002,3.16,127.04,126.98,16.7]
[1763821699205,3.21908575,127.03,127.01,0.04978882]
[1763821700701,3.16,127.02,126.95,23.7936]
[1763821700908,3.16,127.02,126.95,16.7]
[1763821701411,3.16,126.99,126.95,16.7]
[1763821702105,3.16,126.99,126.93,16.7]
[1763821703411,3.16,126.98,126.9,7.0964]
[1763821703712,3.16,126.98,126.9,23.7964]
[1763821703921,3.16,126.95,126.9,23.7964]
[1763821704318,3.16,126.93,126.91,0.05489676]
[1763821704616,3.21172054,126.94,126.91,0.05489676]
[1763821705419,0.05172054,126.94,126.91,7.15089676]
[1763821706821,0.05172054,126.94,126.92,7.0954]
[1763821708719,0.05172054,126.94,126.93,16.7]
[1763821710022,0.05172054,126.94,126.92,23.7954]
[1763821715327,3.21172054,126.94,126.92,23.7954]
[1763821716130,0.05172054,126.94,126.92,23.7954]
[1763821717430,3.21172054,126.94,126.91,0.05489676]
[1763821717632,3.21172054,126.94,126.91,16.75489676]
[1763821718533,0.05172054,126.94,126.91,16.75489676]
[1763821720131,0.05172054,126.94,126.92,7.0955]
[1763821723628,3.21172054,126.94,126.91,19.13793665]
[1763821723825,0.05172054,126.94,126.91,19.13793665]
[1763821724528,3.16,126.93,126.91,0.05489676]
[1763821727022,3.16,126.92,126.91,0.05489676]
[1763821727228,3.16,126.91,126.84,2.38303989]
[1763821727429,3.16,126.91,126.86,9.48193989]
[1763821727733,10.2563,126.91,126.85,2.38303989]
[1763821727923,3.16,126.91,126.86,2.38303989]
[1763821728238,0.05727174,126.9,126.87,2.43973552]
[1763821728426,0.05814905,126.9,126.87,2.44058281]
[1763821731132,3.21814905,126.9,126.87,2.44058281]
[1763821731738,3.21814905,126.9,126.87,0.05754292]
[1763821733225,3.16,126.88,126.82,10.85537656]
[1763821733430,3.16,126.88,126.82,3.75457656]
[1763821733835,3.16,126.88,126.84,9.48283989]
[1763821734135,0.05563478,126.87,126.86,2.38303989]
[1763821734327,0.05349691,126.88,126.86,2.38303989]
[1763821735032,0.05349691,126.88,126.86,9.48183989]
[1763821739839,0.05349691,126.88,126.86,7.0988]
[1763821740337,3.21349691,126.88,126.85,0.04492494]
[1763821741942,3.21349691,126.88,126.85,7.14432494]
[1763821743843,3.21349691,126.88,126.85,0.04492494]
[1763821747145,3.28,126.86,126.85,0.04492494]
[1763821748747,3.33349691,126.88,126.85,0.04492494]
[1763821750151,3.33349691,126.88,126.85,7.14432494]
[1763821752150,0.05349691,126.88,126.86,7.0989]
[1763821752749,3.33349691,126.88,126.85,16.74492494]
[1763821753855,3.33349691,126.88,126.85,23.84442494]
[1763821754254,0.05349691,126.88,126.85,16.74492494]
[1763821755256,0.05349691,126.88,126.86,7.0988]
[1763821757760,3.33349691,126.88,126.85,16.74492494]
[1763821758364,3.33349691,126.88,126.85,0.04492494]
[1763821758664,3.33349691,126.88,126.81,16.7]
[1763821759054,3.28,126.83,126.79,1.37177996]
[1763821759259,3.28,126.83,126.75,134.65438141]
[1763821759567,3.28,126.83,126.75,111.89402092]
[1763821759766,0.0549909,126.8,126.76,3.7282091]
[1763821759962,0.0549909,126.8,126.77,16.7]
[1763821760166,0.0549909,126.8,126.77,23.8039]
[1763821761167,0.0549909,126.8,126.78,10.8315091]
[1763821761469,0.0549909,126.8,126.78,72.8315091]
[1763821763268,3.28,126.84,126.79,110.489]
[1763821763474,3.28,126.87,126.8,16.7]
[1763821763871,3.28,126.86,126.81,23.8016]
[1763821764371,3.28,126.84,126.82,0.05231765]
[1763821767179,3.32974378,126.85,126.82,0.05231765]
[1763821767567,0.04974378,126.85,126.82,0.05231765]
[1763821767773,0.04974378,126.85,126.82,7.15321765]
[1763821770780,0.04974378,126.85,126.83,7.1005]
[1763821771481,0.04974378,126.85,126.83,23.8005]
[1763821774887,3.28,126.89,126.85,7.0992]
[1763821775087,3.28,126.89,126.86,16.7]
[1763821775879,3.33371242,126.89,126.86,23.84929425]
[1763821779292,0.05371242,126.89,126.86,23.84929425]
[1763821780291,3.27371242,126.89,126.86,23.84929425]
[1763821781485,0.05371242,126.89,126.86,23.84929425]
[1763821783994,0.05371242,126.89,126.87,7.0984]
[1763821791498,3.27371242,126.89,126.86,0.05039425]
[1763821791803,3.27371242,126.89,126.87,16.7]
[1763821792099,3.27371242,126.89,126.86,0.05039425]
[1763821793086,3.22,126.88,126.86,0.05039425]
[1763821801194,3.22,126.86,126.79,65.7282091]
[1763821801498,3.22,126.85,126.77,20.4282091]
[1763821801693,3.22,126.85,126.78,7.1034]
[1763821802089,0.05676136,126.83,126.8,0.05282834]
[1763821802298,3.22,126.82,126.8,0.05282834]
[1763821803004,0.05676136,126.83,126.8,0.05282834]
[1763821803204,0.05676136,126.83,126.8,110.53142834]
[1763821804196,0.05676136,126.83,126.81,7.1015]
[1763821806906,0.05676136,126.83,126.81,9.48836776]
[1763821807207,3.28676136,126.83,126.8,0.05282834]
[1763821807699,3.28676136,126.83,126.8,7.15492834]
[1763821807905,0.05676136,126.83,126.81,2.38686776]
[1763821809006,0.05676136,126.83,126.81,9.48846776]
[1763821809204,3.28676136,126.83,126.8,2.4396961]
[1763821809503,3.23,126.82,126.76,2.38686776]
[1763821809704,3.23,126.78,126.75,1.37232092]
[1763821810206,3.23,126.78,126.73,23.8061]
[1763821810404,3.23,126.78,126.73,16.7]
[1763821810706,0.06000988,126.77,126.74,112.92066776]
[1763821811004,0.05305832,126.77,126.74,112.92066776]
[1763821811208,0.05305832,126.77,126.75,7.105]
[1763821811804,3.28305832,126.77,126.75,7.105]
[1763821812306,3.28305832,126.77,126.74,2.38686776]
[1763821814309,0.05305832,126.77,126.74,2.38686776]
[1763821815903,3.28305832,126.77,126.74,2.38686776]
[1763821816207,0.05305832,126.77,126.74,2.38686776]
[1763821817108,0.05305832,126.77,126.75,7.105]
[1763821818511,3.28305832,126.77,126.75,7.105]
[1763821819310,0.05305832,126.77,126.75,7.105]
[1763821821013,3.28305832,126.77,126.73,23.806]
[1763821821204,3.28305832,126.77,126.73,16.7]
[1763821822207,3.28305832,126.77,126.73,23.8061]
[1763821822412,3.28305832,126.77,126.72,2.38686776]
[1763821823215,3.23,126.76,126.72,7.1067]
[1763821823418,3.23,126.76,126.71,19.08686776]
[1763821823718,3.23,126.74,126.7,1.37278107]
[1763821824012,3.23,126.72,126.68,19.08686776]
[1763821824211,0.0577535,126.73,126.7,2.38686776]
[1763821824410,0.0577535,126.73,126.72,2.38686776]
[1763821824609,3.23,126.8,126.74,2.38686776]
[1763821825010,3.23,126.79,126.74,2.38686776]
[1763821825512,3.28968029,126.78,126.75,0.0534836]
[1763821826110,3.28968029,126.78,126.75,7.1584836]
[1763821826307,3.28968029,126.78,126.75,0.0534836]
[1763821827115,3.23,126.77,126.75,0.0534836]
[1763821827803,3.23,126.76,126.75,0.0534836]
[1763821828122,3.23,126.76,126.7,19.08686776]
[1763821829206,3.28277747,126.74,126.71,7.1073]
[1763821829716,3.28277747,126.74,126.7,26.19466776]
[1763821830011,3.28277747,126.74,126.69,2.38686776]
[1763821832607,3.28277747,126.74,126.68,23.8088]
[1763821832807,0.05277747,126.74,126.72,2.38686776]
[1763821834111,3.28277747,126.74,126.7,2.38686776]
[1763821835311,0.05277747,126.74,126.72,2.38686776]
[1763821835706,0.05277747,126.74,126.72,9.49356776]
[1763821836821,3.18277747,126.74,126.7,77.49476776]
[1763821837021,0.05277747,126.74,126.7,70.38686776]
[1763821837821,0.05277747,126.74,126.73,2.38686776]
[1763821838917,3.33277747,126.74,126.7,8.38686776]
[1763821839124,3.33277747,126.74,126.7,9.49456776]
[1763821839314,0.05277747,126.74,126.7,9.49456776]
[1763821839516,0.05277747,126.74,126.72,2.38686776]
[1763821839924,0.05277747,126.74,126.72,26.19346776]
[1763821842024,0.05277747,126.74,126.72,88.19346776]
[1763821842720,0.05277747,126.74,126.7,7.1079]
[1763821842927,3.33277747,126.74,126.71,19.08686776]
[1763821844330,3.33277747,126.74,126.71,16.7]
[1763821845227,3.33277747,126.74,126.69,2.38686776]
[1763821846026,3.28,126.73,126.69,2.38686776]
[1763821852330,3.28,126.73,126.69,9.49506776]
[1763821853028,3.33277747,126.74,126.7,7.1079]
[1763821854631,3.28,126.73,126.68,23.8086]
[1763821854836,3.28,126.73,126.68,26.19546776]
[1763821855326,3.28,126.72,126.69,7.1085]
[1763821857526,3.28,126.73,126.69,7.1085]
[1763821858326,3.28,126.72,126.69,7.1085]
[1763821859732,3.28,126.72,126.68,19.08686776]
[1763821859922,3.33926048,126.71,126.65,2.38686776]
[1763821860127,3.33926048,126.71,126.65,16.7]
[1763821860331,3.28,126.68,126.65,16.7]
[1763821860636,3.33855367,126.68,126.65,16.7]
[1763821860835,3.33855367,126.68,126.66,9.49706776]
[1763821860836,0.05855367,126.68,126.66,9.49706776]
[1763821861737,0.05855367,126.68,126.67,2.38686776]
[1763821863129,7.1062,126.74,126.67,2.38686776]
[1763821863445,3.28,126.74,126.69,2.38686776]
[1763821864043,3.28,126.73,126.69,2.38686776]
[1763821864243,0.0595448,126.72,126.7,0.05125042]
[1763821864431,3.3395448,126.72,126.7,0.05125042]
[1763821865843,0.0595448,126.72,126.7,0.05125042]
[1763821866040,0.0595448,126.72,126.7,2.43811818]
[1763821866643,0.0595448,126.72,126.7,9.54601818]
[1763821866843,0.0595448,126.72,126.7,7.15915042]
[1763821870437,127.178,126.81,126.74,7.1053]
[1763821870438,3.07,126.78,126.74,7.1053]
[1763821870742,3.07,126.78,126.73,16.7]
[1763821871535,3.07,126.76,126.74,0.05650136]
[1763821874556,10.1747,126.76,126.74,0.05650136]
[1763821874742,3.07,126.75,126.74,0.05650136]
[1763821875446,7.1077,126.71,126.68,14.38200273]
[1763821875646,3.07,126.7,126.63,125.00860273]
[1763821875840,3.07,126.7,126.63,128.74397878]
[1763821876347,3.07,126.7,126.63,114.36197605]
[1763821876545,0.05423508,126.68,126.65,114.4029302]
[1763821876749,0.05423508,126.68,126.66,16.68]
[1763821877948,3.07,126.73,126.66,127.2796]
[1763821878954,0.0586855,126.71,126.68,7.16699257]
[1763821879451,3.1286855,126.71,126.68,7.16699257]
[1763821879746,3.1286855,126.71,126.68,0.05829257]
[1763821882755,3.07,126.69,126.64,14.5230009]
[1763821882942,3.07,126.69,126.63,23.7915]
[1763821883547,3.07,126.69,126.63,85.7915]
[1763821883752,0.06007243,126.67,126.65,0.0537111]
[1763821884756,3.13007243,126.67,126.65,0.0537111]
[1763821891562,3.13007243,126.67,126.62,7.1122]
[1763821891763,10.23997243,126.67,126.6,3.73537605]
[1763821891962,3.07,126.66,126.59,18.07402772]
[1763821892169,3.07,126.66,126.59,1.37402772]
[1763821892378,3.07,126.64,126.59,1.37402772]
[1763821892567,0.05442876,126.63,126.6,110.6536]
[1763821892767,0.05071476,126.63,126.6,110.6536]
[1763821893068,0.05071476,126.63,126.62,7.1122]
[1763821894787,3.07,126.68,126.63,7.1114]
[1763821895881,3.11128982,126.67,126.64,0.06032527]
[1763821896573,3.11128982,126.67,126.64,7.17142527]
[1763821896774,0.05128982,126.67,126.64,7.17142527]
[1763821896981,0.05128982,126.67,126.65,3.73537605]
[1763821897175,0.05128982,126.67,126.64,110.67812527]
[1763821897381,3.25128982,126.67,126.64,0.06032527]
[1763821897681,0.05128982,126.67,126.64,0.06032527]
[1763821898887,3.25128982,126.67,126.64,0.06032527]
[1763821899085,3.25128982,126.67,126.64,7.17152527]
[1763821899291,3.25128982,126.67,126.64,0.06032527]
[1763821899988,3.2,126.66,126.6,7.1134]
[1763821900990,3.2,126.63,126.6,7.1134]
[1763821903381,3.2,126.63,126.57,27.55017605]
[1763821903586,0.05880291,126.61,126.57,20.43537605]
[1763821903991,0.05880291,126.61,126.59,7.114]
[1763821904185,3.25880291,126.61,126.59,7.114]
[1763821906097,0.05880291,126.61,126.59,7.114]
[1763821907502,0.05880291,126.61,126.57,16.7]
[1763821907503,3.25880291,126.61,126.57,16.7]
[1763821907804,3.25880291,126.61,126.53,16.7]
[1763821907989,0.05613896,126.58,126.53,16.7]
[1763821908190,0.05613896,126.58,126.55,7.1162]
[1763821909301,3.25613896,126.58,126.55,7.1162]
[1763821910001,3.25613896,126.58,126.56,7.1157]
[1763821910401,0.05613896,126.58,126.56,7.1157]
[1763821910897,0.05613896,126.58,126.56,10.85107605]
[1763821911603,0.05613896,126.58,126.56,27.55107605]
[1763821917102,3.2,126.64,126.59,7.1138]
[1763821917906,3.2,126.62,126.6,0.05214554]
[1763821918406,0.05548627,126.63,126.6,7.16564554]
[1763821918608,0.05548627,126.63,126.6,110.70424554]
[1763821918899,3.25548627,126.63,126.6,7.16554554]
[1763821919106,3.25548627,126.63,126.6,0.05214554]
[1763821920204,3.25548627,126.63,126.61,7.1129]
[1763821920803,3.2,126.68,126.63,110.624]
[1763821921011,3.2,126.71,126.64,131.05517605]
[1763821921305,3.2,126.71,126.64,20.43537605]
[1763821921505,3.2,126.71,126.65,110.612]
[1763821921809,3.2,126.71,126.66,110.603]
[1763821922002,0.05901999,126.69,126.67,0.05068467]
[1763821922210,0.05901999,126.69,126.67,7.15998467]
[1763821923102,0.05901999,126.69,126.67,23.85998467]
[1763821924204,3.2,126.76,126.68,3.73537605]
[1763821924405,3.2,126.76,126.71,7.1071]
[1763821925115,3.2,126.76,126.72,7.1064]
[1763821925303,0.05429213,126.75,126.73,0.05384706]
[1763821926215,0.05429213,126.75,126.74,7.1055]
[1763821926706,0.05429213,126.75,126.73,16.73384706]
[1763821928109,3.25429213,126.75,126.73,16.73384706]
[1763821928309,3.25429213,126.75,126.73,0.05384706]
[1763821928913,3.2,126.74,126.68,19.07038949]
[1763821929604,3.2,126.74,126.68,129.65328949]
[1763821929810,0.05160446,126.72,126.7,2.44350862]
[1763821930006,0.06052507,126.72,126.7,113.01144068]
[1763821930317,0.06052507,126.72,126.71,7.1071]
[1763821931318,0.06052507,126.72,126.71,23.7871]
[1763821933211,3.2,126.76,126.73,7.106]
[1763821933411,3.2,126.76,126.72,2.39038949]
[1763821934221,3.25849944,126.75,126.73,0.05964749]
[1763821935212,3.2,126.74,126.73,0.05964749]
[1763821935814,3.2,126.74,126.68,19.07038949]
[1763821936921,3.2,126.71,126.7,0.05099307]
[1763821937415,3.2,126.71,126.67,7.1092]
[1763821937621,5.59038949,126.71,126.65,23.7906]
[1763821937822,3.2,126.7,126.65,23.7906]
[1763821938216,3.25325131,126.69,126.66,0.0505626]
[1763821941517,3.25325131,126.69,126.66,7.1605626]
[1763821941711,3.25325131,126.69,126.66,9.55095209]
[1763821941919,0.05325131,126.69,126.66,9.55095209]
[1763821942921,3.25325131,126.69,126.66,2.44095209]
[1763821943322,3.25325131,126.69,126.66,0.0505626]
[1763821945019,3.25325131,126.69,126.66,7.1605626]
[1763821945219,3.25325131,126.69,126.63,2.39038949]
[1763821946525,7.1092,126.68,126.63,9.50208949]
[1763821946927,3.2,126.67,126.63,9.50208949]
[1763821947132,3.25143017,126.66,126.63,9.50208949]
[1763821948019,3.25143017,126.66,126.63,7.1117]
[1763821949328,3.25143017,126.66,126.62,16.68]
[1763821950823,0.05143017,126.66,126.63,2.39038949]
[1763821951727,0.05143017,126.66,126.63,9.50218949]
[1763821952128,3.2,126.7,126.65,2.39038949]
[1763821953034,3.2,126.7,126.66,7.11]
[1763821953233,0.06022494,126.69,126.67,0.05549599]
[1763821954128,0.06022494,126.69,126.67,9.55538548]
[1763821955922,3.19,126.76,126.7,7.1076]
[1763821956122,3.19,126.76,126.7,9.49798949]
[1763821956618,3.19,126.76,126.71,7.1072]
[1763821956819,3.19,126.76,126.7,19.07038949]
[1763821957019,0.05092182,126.74,126.72,0.05536172]
[1763821957325,0.05092182,126.74,126.72,9.55245121]
[1763821959930,5.72038949,126.79,126.73,7.1058]
[1763821960726,5.72038949,126.79,126.73,23.7858]
[1763821960924,0.05034903,126.77,126.75,0.04984704]
[1763821961125,3.38034903,126.77,126.75,0.04984704]
[1763821961937,0.05034903,126.77,126.75,0.04984704]
[1763821963326,0.05034903,126.77,126.75,7.15484704]
[1763821963734,0.05034903,126.77,126.75,0.04984704]
[1763821964135,3.38034903,126.77,126.75,0.04984704]
[1763821965735,0.05034903,126.77,126.75,7.15484704]
[1763821966030,0.05034903,126.77,126.76,2.39038949]
[1763821968126,3.38034903,126.77,126.75,0.04984704]
[1763821971440,0.05034903,126.77,126.76,2.39038949]
[1763821972936,3.33,126.81,126.76,2.39038949]
[1763821973132,3.33,126.81,126.78,2.39038949]
[1763821973938,3.3806387,126.81,126.78,2.44957654]
[1763821974139,3.3806387,126.81,126.78,9.55287654]
[1763821975738,0.0506387,126.81,126.79,7.1027]
[1763821977836,0.0506387,126.81,126.8,2.39038949]
[1763821979343,3.33,126.84,126.81,7.1017]
[1763821979735,5.72038949,126.88,126.8,112.86848949]
[1763821979935,3.33,126.87,126.81,16.66]
[1763821980238,3.33,126.87,126.82,7.101]
[1763821980438,3.33,126.84,126.83,0.05089931]
[1763821981345,3.38425364,126.85,126.83,0.05089931]
[1763821981743,0.05425364,126.85,126.83,9.5417888]
[1763821983046,0.05425364,126.85,126.84,16.66]
[1763821983843,3.33,126.89,126.85,7.0995]
[1763821984048,3.33,126.92,126.85,2.39038949]
[1763821984249,3.33,126.92,126.87,2.39038949]
[1763821984647,3.33,126.95,126.89,2.39038949]
[1763821984843,3.38521104,126.93,126.91,0.05408975]
[1763821985045,0.05521104,126.93,126.91,0.05408975]
[1763821985444,3.33,126.99,126.91,129.48717924]
[1763821985648,3.33,126.99,126.93,2.39038949]
[1763821986052,3.33,126.99,126.94,16.66]
[1763821986251,3.33,126.99,126.95,2.39038949]
[1763821986451,0.0560333,126.98,126.96,0.05145288]
[1763821989463,3.1960333,126.98,126.96,0.05145288]
[1763821989646,3.14,126.97,126.91,16.64]
[1763821989851,3.14,126.96,126.87,16.64]
[1763821990047,3.14,126.94,126.87,16.64]
[1763821990554,3.14,126.92,126.87,16.64]
[1763821990755,3.14,126.9,126.88,0.04996872]
[1763821991847,3.19990123,126.91,126.88,0.04996872]
[1763821992062,0.05990123,126.91,126.88,0.04996872]
[1763821992456,0.05990123,126.91,126.88,16.68996872]
[1763821992662,3.14,126.97,126.89,7.097]
[1763821993145,10.2348,126.94,126.88,16.64]
[1763821993351,3.14,126.93,126.88,16.64]